fUSD/lending_fUSD_20260529
["ID","MTS","AMOUNT","RATE_DAILY","PERIOD"]
[423323138,1780056654000,-340.66294342,0.0003131,7]
[423323090,1780056654000,-1461.0,0.00031233,7]
[423323120,1780056654000,-501.82701672,0.00031233,7]
[423323116,1780056654000,-441.47620498,0.00031233,2]
[423323137,1780056654000,-781.34986708,0.00031299,7]
[423323113,1780056654000,-500.0,0.00031233,2]
[423323115,1780056654000,-500.0,0.00031233,2]
[423323095,1780056654000,-1461.0,0.00031233,7]
[423323100,1780056654000,-500.0,0.00031233,2]
[423323099,1780056654000,-500.0,0.00031233,2]
[423323104,1780056654000,-500.0,0.00031233,2]
[423323101,1780056654000,-500.0,0.00031233,2]
[423323102,1780056654000,-500.0,0.00031233,2]
[423323103,1780056654000,-500.0,0.00031233,2]
[423323106,1780056654000,-500.0,0.00031233,2]
[423323096,1780056654000,-1461.0,0.00031233,7]
[423323108,1780056654000,-500.0,0.00031233,2]
[423323105,1780056654000,-500.0,0.00031233,2]
[423323110,1780056654000,-500.0,0.00031233,2]
[423323109,1780056654000,-500.0,0.00031233,2]
[423323118,1780056654000,-500.0,0.00031233,7]
[423323111,1780056654000,-500.0,0.00031233,2]
[423323112,1780056654000,-500.0,0.00031233,2]
[423323117,1780056654000,-150.0,0.00031233,2]
[423323114,1780056654000,-500.0,0.00031233,2]
[423323107,1780056654000,-500.0,0.00031233,2]
[423323164,1780056655000,-506.07001486,0.0003131,7]
[423323167,1780056655000,-827.17413021,0.0003131,5]
[423323163,1780056655000,-306.56643812,0.0003131,7]
[423323166,1780056655000,-448.01293799,0.0003131,7]
[423323165,1780056655000,-167.50753875,0.0003131,7]
[423323162,1780056655000,-164.96870002,0.0003131,2]
[423323169,1780056655000,-329.67752506,0.0003131,7]
[423323168,1780056655000,-584.46617492,0.0003131,7]
[423323174,1780056655000,-411.50549021,0.0003131,7]
[423323172,1780056655000,-762.55292128,0.0003131,7]
[423323170,1780056655000,-1487.61035645,0.0003131,7]
[423323177,1780056655000,-346.46281349,0.0003131,7]
[423323176,1780056655000,-561.87523418,0.0003131,2]
[423323173,1780056655000,-764.47911495,0.0003131,7]
[423323175,1780056655000,-408.96463085,0.0003131,7]
[423323179,1780056655000,-587.77991003,0.0003131,2]
[423323161,1780056655000,-726.8315098,0.0003131,7]
[423323171,1780056655000,-384.50021525,0.0003131,7]
[423323157,1780056655000,-661.15135715,0.0003131,7]
[423323153,1780056655000,-160.49733697,0.0003131,7]
[423323154,1780056655000,-402.80754317,0.0003131,7]
[423323180,1780056655000,-212.76995561,0.0003131,7]
[423323142,1780056655000,-761.32363978,0.0003131,7]
[423323139,1780056655000,-342.74942695,0.0003131,7]
[423323141,1780056655000,-160.45909009,0.0003131,7]
[423323143,1780056655000,-160.69199126,0.0003131,7]
[423323145,1780056655000,-681.6472164,0.0003131,7]
[423323144,1780056655000,-160.42531587,0.0003131,7]
[423323147,1780056655000,-170.45189406,0.0003131,7]
[423323158,1780056655000,-449.99939243,0.0003131,7]
[423323146,1780056655000,-610.98904212,0.0003131,7]
[423323150,1780056655000,-319.01564937,0.0003131,7]
[423323149,1780056655000,-499.09612419,0.0003131,7]
[423323151,1780056655000,-439.84777493,0.0003131,7]
[423323152,1780056655000,-835.34770017,0.0003131,7]
[423323155,1780056655000,-308.9980516,0.0003131,7]
[423323156,1780056655000,-348.934414,0.0003131,7]
[423323160,1780056655000,-160.49736034,0.0003131,7]
[423323159,1780056655000,-160.35581611,0.0003131,7]
[423323148,1780056655000,-522.34402998,0.0003131,7]
[423323184,1780056655000,-809.01978244,0.0003131,7]
[423323140,1780056655000,-751.00760413,0.0003131,7]
[423323186,1780056655000,-160.42851659,0.0003131,7]
[423323207,1780056655000,-717.83360202,0.0003131,7]
[423323206,1780056655000,-331.00823145,0.0003131,7]
[423323212,1780056655000,-160.70734615,0.0003133,7]
[423323205,1780056655000,-160.42531152,0.0003131,7]
[423323210,1780056655000,-688.72185044,0.0003131,7]
[423323208,1780056655000,-1313.42224828,0.0003131,7]
[423323209,1780056655000,-634.49126615,0.0003131,7]
[423323211,1780056655000,-292.5,0.0003132,2]
[423323202,1780056655000,-164.94811919,0.0003131,7]
[423323213,1780056655000,-160.42531756,0.0003133,7]
[423323218,1780056655000,-160.42531781,0.0003133,7]
[423323217,1780056655000,-340.62168414,0.0003133,7]
[423323220,1780056655000,-406.19395241,0.0003133,7]
[423323219,1780056655000,-160.4253198,0.0003133,7]
[423323216,1780056655000,-160.49731709,0.0003133,7]
[423323222,1780056655000,-155.5235617,0.0003133,7]
[423323221,1780056655000,-160.42850854,0.0003133,7]
[423323178,1780056655000,-518.26482842,0.0003131,2]
[423323215,1780056655000,-160.4253173,0.0003133,7]
[423323203,1780056655000,-708.05498156,0.0003131,7]
[423323214,1780056655000,-759.90015135,0.0003133,7]
[423323204,1780056655000,-165.12243611,0.0003131,7]
[423323201,1780056655000,-423.2260397,0.0003131,7]
[423323182,1780056655000,-723.40083595,0.0003131,7]
[423323185,1780056655000,-160.42530055,0.0003131,7]
[423323181,1780056655000,-222.12062325,0.0003131,7]
[423323183,1780056655000,-601.99193116,0.0003131,7]
[423323188,1780056655000,-823.57551348,0.0003131,7]
[423323189,1780056655000,-542.00010315,0.0003131,5]
[423323194,1780056655000,-301.40472437,0.0003131,7]
[423323191,1780056655000,-609.13872775,0.0003131,7]
[423323187,1780056655000,-160.42531149,0.0003131,7]
[423323190,1780056655000,-523.42570188,0.0003131,7]
[423323192,1780056655000,-160.42851735,0.0003131,7]
[423323193,1780056655000,-160.42852072,0.0003131,7]
[423323195,1780056655000,-1153.67416936,0.0003131,7]
[423323197,1780056655000,-166.20206057,0.0003131,7]
[423323200,1780056655000,-823.24237418,0.0003131,7]
[423323198,1780056655000,-301.55018014,0.0003131,7]
[423323199,1780056655000,-555.81542163,0.0003131,2]
[423323196,1780056655000,-325.99365082,0.0003131,7]
[423323258,1780056656000,-281.06564918,0.00031384,7]
[423323255,1780056656000,-642.86543558,0.00031384,7]
[423323254,1780056656000,-397.71909306,0.00031384,7]
[423323253,1780056656000,-1351.12274678,0.0003133,7]
[423323249,1780056656000,-430.04676054,0.0003133,7]
[423323252,1780056656000,-708.50755652,0.0003133,7]
[423323248,1780056656000,-796.42830105,0.0003133,7]
[423323257,1780056656000,-615.77117891,0.00031384,7]
[423323251,1780056656000,-680.18597765,0.0003133,7]
[423323259,1780056656000,-718.92246861,0.00031384,7]
[423323269,1780056656000,-228.83069248,0.00031384,7]
[423323263,1780056656000,-372.70350919,0.00031384,7]
[423323264,1780056656000,-264.70515884,0.00031384,7]
[423323260,1780056656000,-795.45010869,0.00031384,7]
[423323265,1780056656000,-207.98655021,0.00031384,7]
[423323256,1780056656000,-206.76496197,0.00031384,7]
[423323277,1780056656000,-5645.69928717,0.00031462,2]
[423323267,1780056656000,-429.10902509,0.00031384,7]
[423323266,1780056656000,-292.64693355,0.00031384,7]
[423323270,1780056656000,-231.39465645,0.00031393,2]
[423323250,1780056656000,-310.45099771,0.0003133,7]
[423323262,1780056656000,-629.53135415,0.00031384,7]
[423323247,1780056656000,-160.49732895,0.0003133,7]
[423323229,1780056656000,-168.84292047,0.0003133,7]
[423323245,1780056656000,-304.58981375,0.0003133,7]
[423323224,1780056656000,-327.18449977,0.0003133,7]
[423323223,1780056656000,-457.99628692,0.0003133,7]
[423323225,1780056656000,-501.52436015,0.0003133,7]
[423323268,1780056656000,-736.40302193,0.00031384,7]
[423323230,1780056656000,-168.26811507,0.0003133,7]
[423323226,1780056656000,-167.92382881,0.0003133,7]
[423323228,1780056656000,-168.79279335,0.0003133,2]
[423323227,1780056656000,-165.55157232,0.0003133,7]
[423323238,1780056656000,-389.94863677,0.0003133,7]
[423323233,1780056656000,-449.8075737,0.0003133,7]
[423323244,1780056656000,-486.95905239,0.0003133,7]
[423323232,1780056656000,-157.42799772,0.0003133,7]
[423323231,1780056656000,-170.14803788,0.0003133,7]
[423323235,1780056656000,-164.41527313,0.0003133,7]
[423323236,1780056656000,-308.75521843,0.0003133,7]
[423323237,1780056656000,-161.5358857,0.0003133,7]
[423323239,1780056656000,-170.79684311,0.0003133,7]
[423323240,1780056656000,-315.36925289,0.0003133,7]
[423323241,1780056656000,-587.82795927,0.0003133,7]
[423323246,1780056656000,-168.87012776,0.0003133,7]
[423323242,1780056656000,-441.42006145,0.0003133,7]
[423323243,1780056656000,-695.56136862,0.0003133,7]
[423323234,1780056656000,-453.38015755,0.0003133,7]
[423323276,1780056656000,-2000.0,0.00031436,7]
[423323261,1780056656000,-300.32349771,0.00031384,7]
[423323272,1780056656000,-50339.39,0.000314,14]
[423323301,1780056656000,-163.0,0.00031729,3]
[423323305,1780056656000,-2043.0,0.00031759,30]
[423323307,1780056656000,-823.0,0.00031765,30]
[423323311,1780056656000,-896.0,0.00031765,30]
[423323304,1780056656000,-697.0,0.00031759,30]
[423323302,1780056656000,-996.0,0.00031739,9]
[423323306,1780056656000,-1023.0,0.00031759,30]
[423323303,1780056656000,-835.0,0.00031759,30]
[423323308,1780056656000,-1042.0,0.00031765,30]
[423323310,1780056656000,-2182.0,0.00031765,30]
[423323309,1780056656000,-731.0,0.00031765,30]
[423323312,1780056656000,-2600.0,0.00031781,60]
[423323323,1780056656000,-442.79799973,0.00031886,30]
[423323314,1780056656000,-904.0,0.00031807,30]
[423323315,1780056656000,-5338.0,0.00031807,30]
[423323316,1780056656000,-155.0,0.00031807,30]
[423323317,1780056656000,-181.50665082,0.00031812,30]
[423323321,1780056656000,-200.0,0.0003187,30]
[423323319,1780056656000,-1590.0,0.00031862,3]
[423323320,1780056656000,-513.94360888,0.0003187,30]
[423323318,1780056656000,-2318.0,0.00031846,3]
[423323322,1780056656000,-200.0,0.0003187,7]
[423323275,1780056656000,-182.0,0.00031425,120]
[423323300,1780056656000,-2019.51,0.00031648,2]
[423323299,1780056656000,-1063.54,0.00031647,7]
[423323313,1780056656000,-200.0,0.000318,12]
[423323298,1780056656000,-973.85,0.00031647,7]
[423323274,1780056656000,-182.0,0.00031424,120]
[423323292,1780056656000,-6580.74,0.000316,7]
[423323271,1780056656000,-150.08748288,0.00031393,7]
[423323273,1780056656000,-1590.0,0.00031409,3]
[423323280,1780056656000,-1590.0,0.00031542,3]
[423323278,1780056656000,-574.58950557,0.00031507,30]
[423323279,1780056656000,-3000.0,0.00031507,60]
[423323281,1780056656000,-612.29,0.00031588,120]
[423323283,1780056656000,-669.27908246,0.00031589,2]
[423323288,1780056656000,-163.0,0.00031596,3]
[423323285,1780056656000,-600.99123732,0.00031589,7]
[423323282,1780056656000,-168.2651148,0.00031588,7]
[423323286,1780056656000,-1590.0,0.00031596,3]
[423323287,1780056656000,-1590.0,0.00031596,3]
[423323284,1780056656000,-662.3585493,0.00031589,7]
[423323290,1780056656000,-1590.0,0.00031597,3]
[423323291,1780056656000,-3699.58,0.000316,7]
[423323289,1780056656000,-1590.0,0.00031597,3]
[423323293,1780056656000,-250.0,0.00031623,7]
[423323294,1780056656000,-250.0,0.00031623,7]
[423323296,1780056656000,-250.0,0.00031623,7]
[423323297,1780056656000,-1030.94,0.00031647,7]
[423323295,1780056656000,-250.0,0.00031623,7]
[423323374,1780056657000,-507.98,0.00031999,120]
[423323369,1780056657000,-151.0,0.00031997,7]
[423323364,1780056657000,-994.31263586,0.00031978,7]
[423323360,1780056657000,-1590.0,0.00031917,3]
[423323358,1780056657000,-1590.0,0.00031917,3]
[423323357,1780056657000,-163.0,0.00031916,3]
[423323362,1780056657000,-1225.0,0.00031961,2]
[423323355,1780056657000,-1590.0,0.00031916,3]
[423323359,1780056657000,-1590.0,0.00031917,3]
[423323370,1780056657000,-500.0,0.00031999,120]
[423323354,1780056657000,-1590.0,0.00031916,3]
[423323361,1780056657000,-850.23247207,0.00031924,7]
[423323365,1780056657000,-786.91419269,0.00031978,7]
[423323381,1780056657000,-507.98,0.00031999,120]
[423323368,1780056657000,-151.0,0.00031997,7]
[423323363,1780056657000,-803.58179447,0.00031978,7]
[423323373,1780056657000,-560.55,0.00031999,120]
[423323366,1780056657000,-151.0,0.00031997,7]
[423323371,1780056657000,-500.0,0.00031999,120]
[423323367,1780056657000,-151.0,0.00031997,7]
[423323375,1780056657000,-507.98,0.00031999,120]
[423323379,1780056657000,-507.98,0.00031999,120]
[423323378,1780056657000,-507.98,0.00031999,120]
[423323377,1780056657000,-507.98,0.00031999,120]
[423323383,1780056657000,-500.0,0.00031999,30]
[423323376,1780056657000,-507.98,0.00031999,120]
[423323356,1780056657000,-1590.0,0.00031916,3]
[423323372,1780056657000,-500.0,0.00031999,120]
[423323351,1780056657000,-163.0,0.00031916,3]
[423323331,1780056657000,-793.80499158,0.00031892,7]
[423323353,1780056657000,-1590.0,0.00031916,3]
[423323382,1780056657000,-508.16,0.00031999,120]
[423323324,1780056657000,-500.0,0.0003189,120]
[423323326,1780056657000,-500.0,0.0003189,30]
[423323330,1780056657000,-767.20655078,0.00031892,7]
[423323328,1780056657000,-765.11324478,0.00031892,7]
[423323327,1780056657000,-18935.23521844,0.00031891,2]
[423323329,1780056657000,-794.07766312,0.00031892,7]
[423323325,1780056657000,-507.98,0.0003189,120]
[423323332,1780056657000,-772.63561762,0.00031892,7]
[423323336,1780056657000,-9928.921,0.000319,2]
[423323333,1780056657000,-976.68733385,0.00031892,7]
[423323335,1780056657000,-200.0,0.000319,11]
[423323334,1780056657000,-215.61573249,0.000319,2]
[423323338,1780056657000,-852.0590205,0.00031903,7]
[423323349,1780056657000,-885.06872695,0.00031903,7]
[423323348,1780056657000,-953.19115159,0.00031903,7]
[423323340,1780056657000,-1044.18462521,0.00031903,7]
[423323339,1780056657000,-951.65454972,0.00031903,7]
[423323342,1780056657000,-1859.51294556,0.00031903,7]
[423323337,1780056657000,-1259.39874542,0.000319,2]
[423323344,1780056657000,-752.48991395,0.00031903,7]
[423323341,1780056657000,-826.43919643,0.00031903,7]
[423323343,1780056657000,-955.59889369,0.00031903,7]
[423323347,1780056657000,-1442.0927117,0.00031903,7]
[423323346,1780056657000,-761.42340968,0.00031903,7]
[423323345,1780056657000,-1711.80497459,0.00031903,7]
[423323350,1780056657000,-1641.77781035,0.00031903,7]
[423323352,1780056657000,-1590.0,0.00031916,3]
[423323384,1780056657000,-500.0,0.00031999,30]
[423323426,1780056657000,-165.64168971,0.00032,120]
[423323385,1780056657000,-500.0,0.00031999,30]
[423323417,1780056657000,-1360.3995956,0.00032,120]
[423323415,1780056657000,-601.27181754,0.00032,120]
[423323418,1780056657000,-689.11138549,0.00032,120]
[423323420,1780056657000,-1133.72109548,0.00032,120]
[423323419,1780056657000,-831.10344149,0.00032,120]
[423323423,1780056657000,-793.94948581,0.00032,120]
[423323425,1780056657000,-2120867.0,0.00032,2]
[423323424,1780056657000,-160.0,0.00032,120]
[423323428,1780056657000,-2000.0,0.00032,16]
[423323429,1780056657000,-50339.39,0.00032,14]
[423323427,1780056657000,-235.0,0.00032,30]
[423323430,1780056657000,-1298.758075,0.00032,7]
[423323432,1780056657000,-1298.758075,0.00032,7]
[423323433,1780056657000,-1298.758075,0.00032,7]
[423323434,1780056657000,-498.56507028,0.00032,120]
[423323431,1780056657000,-1298.758075,0.00032,7]
[423323436,1780056657000,-151.0,0.00032,7]
[423323435,1780056657000,-151.0,0.00032,7]
[423323437,1780056657000,-151.0,0.00032,7]
[423323438,1780056657000,-151.0,0.00032,7]
[423323439,1780056657000,-151.0,0.00032,7]
[423323441,1780056657000,-500.0,0.00032,2]
[423323443,1780056657000,-500.0,0.00032,2]
[423323440,1780056657000,-151.0,0.00032,7]
[423323444,1780056657000,-500.0,0.00032,2]
[423323380,1780056657000,-507.98,0.00031999,120]
[423323445,1780056657000,-500.0,0.00032,2]
[423323414,1780056657000,-796.4344571,0.00032,120]
[423323416,1780056657000,-1201.14896176,0.00032,120]
[423323442,1780056657000,-500.0,0.00032,2]
[423323413,1780056657000,-1506.27750981,0.00032,120]
[423323421,1780056657000,-1182.31119137,0.00032,120]
[423323387,1780056657000,-500.0,0.00031999,30]
[423323386,1780056657000,-500.0,0.00031999,30]
[423323390,1780056657000,-500.0,0.00031999,30]
[423323392,1780056657000,-612.29,0.00031999,120]
[423323389,1780056657000,-500.0,0.00031999,30]
[423323388,1780056657000,-500.0,0.00031999,30]
[423323394,1780056657000,-612.29,0.00031999,120]
[423323393,1780056657000,-612.29,0.00031999,120]
[423323391,1780056657000,-357.5,0.00031999,30]
[423323396,1780056657000,-612.29,0.00031999,120]
[423323395,1780056657000,-612.29,0.00031999,120]
[423323398,1780056657000,-612.29,0.00031999,120]
[423323400,1780056657000,-612.29,0.00031999,120]
[423323397,1780056657000,-612.29,0.00031999,120]
[423323402,1780056657000,-1495.35307732,0.00032,120]
[423323412,1780056657000,-1480.48682091,0.00032,120]
[423323410,1780056657000,-2910.12960998,0.00032,120]
[423323422,1780056657000,-2743.28314929,0.00032,120]
[423323411,1780056657000,-1912.35784356,0.00032,120]
[423323409,1780056657000,-1292.68633927,0.00032,120]
[423323399,1780056657000,-612.29,0.00031999,120]
[423323405,1780056657000,-662.56675883,0.00032,120]
[423323403,1780056657000,-520.60782192,0.00032,120]
[423323407,1780056657000,-3339.14890369,0.00032,120]
[423323406,1780056657000,-1023.15991572,0.00032,120]
[423323401,1780056657000,-612.49,0.00031999,120]
[423323404,1780056657000,-777.46867565,0.00032,120]
[423323408,1780056657000,-1270.5611212,0.00032,120]
[423323490,1780056658000,-500.0,0.00032,2]
[423323485,1780056658000,-500.0,0.00032,2]
[423323486,1780056658000,-500.0,0.00032,2]
[423323479,1780056658000,-500.0,0.00032,2]
[423323475,1780056658000,-500.0,0.00032,2]
[423323481,1780056658000,-500.0,0.00032,2]
[423323480,1780056658000,-500.0,0.00032,2]
[423323478,1780056658000,-500.0,0.00032,2]
[423323484,1780056658000,-500.0,0.00032,2]
[423323474,1780056658000,-500.0,0.00032,2]
[423323482,1780056658000,-500.0,0.00032,2]
[423323496,1780056658000,-500.0,0.00032,2]
[423323487,1780056658000,-500.0,0.00032,2]
[423323495,1780056658000,-500.0,0.00032,2]
[423323491,1780056658000,-500.0,0.00032,2]
[423323488,1780056658000,-500.0,0.00032,2]
[423323489,1780056658000,-500.0,0.00032,2]
[423323493,1780056658000,-500.0,0.00032,2]
[423323494,1780056658000,-500.0,0.00032,2]
[423323497,1780056658000,-500.0,0.00032,2]
[423323500,1780056658000,-500.0,0.00032,2]
[423323498,1780056658000,-500.0,0.00032,2]
[423323507,1780056658000,-500.0,0.00032,2]
[423323499,1780056658000,-500.0,0.00032,2]
[423323477,1780056658000,-500.0,0.00032,2]
[423323504,1780056658000,-500.0,0.00032,2]
[423323492,1780056658000,-500.0,0.00032,2]
[423323476,1780056658000,-500.0,0.00032,2]
[423323471,1780056658000,-500.0,0.00032,2]
[423323473,1780056658000,-500.0,0.00032,2]
[423323505,1780056658000,-500.0,0.00032,2]
[423323446,1780056658000,-500.0,0.00032,2]
[423323447,1780056658000,-500.0,0.00032,2]
[423323448,1780056658000,-500.0,0.00032,2]
[423323450,1780056658000,-500.0,0.00032,2]
[423323452,1780056658000,-500.0,0.00032,2]
[423323449,1780056658000,-500.0,0.00032,2]
[423323451,1780056658000,-500.0,0.00032,2]
[423323453,1780056658000,-500.0,0.00032,2]
[423323456,1780056658000,-500.0,0.00032,2]
[423323457,1780056658000,-500.0,0.00032,2]
[423323454,1780056658000,-500.0,0.00032,2]
[423323458,1780056658000,-500.0,0.00032,2]
[423323455,1780056658000,-500.0,0.00032,2]
[423323460,1780056658000,-500.0,0.00032,2]
[423323459,1780056658000,-500.0,0.00032,2]
[423323469,1780056658000,-500.0,0.00032,2]
[423323470,1780056658000,-500.0,0.00032,2]
[423323467,1780056658000,-500.0,0.00032,2]
[423323468,1780056658000,-500.0,0.00032,2]
[423323464,1780056658000,-500.0,0.00032,2]
[423323463,1780056658000,-500.0,0.00032,2]
[423323461,1780056658000,-500.0,0.00032,2]
[423323465,1780056658000,-500.0,0.00032,2]
[423323466,1780056658000,-500.0,0.00032,2]
[423323462,1780056658000,-500.0,0.00032,2]
[423323472,1780056658000,-500.0,0.00032,2]
[423323483,1780056658000,-500.0,0.00032,2]
[423323508,1780056658000,-500.0,0.00032,2]
[423323558,1780056658000,-200.0,0.0003227,7]
[423323501,1780056658000,-500.0,0.00032,2]
[423323542,1780056658000,-163.0,0.00032182,3]
[423323543,1780056658000,-836.59885307,0.00032186,2]
[423323538,1780056658000,-1154.137718,0.00032,7]
[423323539,1780056658000,-971.61,0.00032031,120]
[423323541,1780056658000,-1590.0,0.00032088,3]
[423323540,1780056658000,-200.0,0.0003207,7]
[423323545,1780056658000,-751.23904665,0.00032186,7]
[423323544,1780056658000,-827.94818662,0.00032186,7]
[423323546,1780056658000,-3699.58,0.000322,7]
[423323549,1780056658000,-4414.4,0.0003221,5]
[423323547,1780056658000,-6580.74,0.000322,7]
[423323548,1780056658000,-1000.0,0.00032205,14]
[423323537,1780056658000,-1154.137718,0.00032,7]
[423323550,1780056658000,-368.30440275,0.00032222,30]
[423323551,1780056658000,-1000.0,0.00032232,30]
[423323554,1780056658000,-1590.0,0.00032236,11]
[423323553,1780056658000,-2304.0,0.00032236,11]
[423323555,1780056658000,-1590.0,0.00032236,11]
[423323561,1780056658000,-901.782342,0.00032329,7]
[423323557,1780056658000,-163.0,0.00032236,11]
[423323559,1780056658000,-996.0,0.00032294,9]
[423323560,1780056658000,-1000.0,0.00032323,14]
[423323564,1780056658000,-901.782342,0.00032329,7]
[423323562,1780056658000,-901.782342,0.00032329,7]
[423323563,1780056658000,-901.782342,0.00032329,7]
[423323502,1780056658000,-500.0,0.00032,2]
[423323552,1780056658000,-997.6,0.00032232,7]
[423323536,1780056658000,-1154.137718,0.00032,7]
[423323556,1780056658000,-738.0,0.00032236,11]
[423323535,1780056658000,-1154.137718,0.00032,7]
[423323534,1780056658000,-179.82615042,0.00032,120]
[423323506,1780056658000,-500.0,0.00032,2]
[423323503,1780056658000,-500.0,0.00032,2]
[423323520,1780056658000,-500.0,0.00032,2]
[423323509,1780056658000,-500.0,0.00032,2]
[423323511,1780056658000,-500.0,0.00032,2]
[423323512,1780056658000,-500.0,0.00032,2]
[423323513,1780056658000,-500.0,0.00032,2]
[423323514,1780056658000,-500.0,0.00032,2]
[423323519,1780056658000,-500.0,0.00032,2]
[423323517,1780056658000,-500.0,0.00032,2]
[423323515,1780056658000,-500.0,0.00032,2]
[423323518,1780056658000,-500.0,0.00032,2]
[423323510,1780056658000,-500.0,0.00032,2]
[423323521,1780056658000,-500.0,0.00032,2]
[423323516,1780056658000,-500.0,0.00032,2]
[423323529,1780056658000,-4431.499608,0.00032,7]
[423323528,1780056658000,-287.87789,0.00032,2]
[423323525,1780056658000,-500.0,0.00032,2]
[423323526,1780056658000,-500.0,0.00032,2]
[423323527,1780056658000,-500.0,0.00032,2]
[423323533,1780056658000,-250.0,0.00032,30]
[423323530,1780056658000,-4431.499608,0.00032,7]
[423323522,1780056658000,-500.0,0.00032,2]
[423323531,1780056658000,-4431.499608,0.00032,7]
[423323532,1780056658000,-4431.499608,0.00032,7]
[423323523,1780056658000,-500.0,0.00032,2]
[423323524,1780056658000,-500.0,0.00032,2]
[423323593,1780056659000,-500.0,0.00032603,15]
[423323604,1780056659000,-1000.0,0.00032719,14]
[423323596,1780056659000,-500.0,0.00032603,15]
[423323595,1780056659000,-500.0,0.00032603,15]
[423323600,1780056659000,-1313.93482,0.0003265,33]
[423323597,1780056659000,-473.66547865,0.00032603,15]
[423323598,1780056659000,-500.0,0.00032603,60]
[423323599,1780056659000,-2318.0,0.00032617,11]
[423323601,1780056659000,-1000.0,0.00032696,14]
[423323603,1780056659000,-651.55,0.00032713,7]
[423323594,1780056659000,-500.0,0.00032603,15]
[423323606,1780056659000,-700.0,0.0003274,7]
[423323609,1780056659000,-700.0,0.0003274,7]
[423323608,1780056659000,-700.0,0.0003274,7]
[423323610,1780056659000,-700.0,0.0003274,7]
[423323607,1780056659000,-700.0,0.0003274,7]
[423323611,1780056659000,-700.0,0.0003274,7]
[423323602,1780056659000,-506.76,0.00032713,7]
[423323613,1780056659000,-700.0,0.0003274,7]
[423323612,1780056659000,-700.0,0.0003274,7]
[423323616,1780056659000,-700.0,0.0003274,7]
[423323614,1780056659000,-700.0,0.0003274,7]
[423323592,1780056659000,-500.0,0.00032603,15]
[423323605,1780056659000,-1000.0,0.00032726,14]
[423323591,1780056659000,-500.0,0.00032603,15]
[423323574,1780056659000,-1000.0,0.00032511,14]
[423323589,1780056659000,-500.0,0.00032603,15]
[423323615,1780056659000,-700.0,0.0003274,7]
[423323566,1780056659000,-1000.0,0.00032332,14]
[423323567,1780056659000,-2318.0,0.00032369,11]
[423323565,1780056659000,-3000.0,0.00032329,60]
[423323568,1780056659000,-1000.0,0.00032376,14]
[423323579,1780056659000,-163.0,0.00032556,11]
[423323569,1780056659000,-401.69008289,0.00032405,2]
[423323571,1780056659000,-259.3742814,0.0003247,30]
[423323570,1780056659000,-2051.009111,0.00032423,2]
[423323572,1780056659000,-1000.0,0.000325,7]
[423323573,1780056659000,-2000.0,0.00032506,7]
[423323590,1780056659000,-500.0,0.00032603,15]
[423323575,1780056659000,-1000.0,0.00032546,14]
[423323578,1780056659000,-2318.0,0.00032556,11]
[423323576,1780056659000,-506.76,0.00032548,7]
[423323580,1780056659000,-1590.0,0.00032556,11]
[423323582,1780056659000,-2318.0,0.00032556,11]
[423323585,1780056659000,-500.0,0.00032603,15]
[423323583,1780056659000,-150.0,0.00032603,7]
[423323581,1780056659000,-2318.0,0.00032556,11]
[423323586,1780056659000,-500.0,0.00032603,15]